bitfinex/quotes_SOLUSD_20241022
["timestamp","ask_amount","ask_price","bid_price","bid_amount"]
[1729600743909,6.0055,166.52,166.45,6.1454]
[1729600744107,6.0045,166.54,166.45,6.1454]
[1729600744310,6.005,166.53,166.45,6.1454]
[1729600744724,6.0052,166.53,166.45,6.1454]
[1729600745024,6.0053,166.52,166.45,6.1454]
[1729600745227,43.776884,166.57,166.45,6.1454]
[1729600745531,43.776884,166.57,166.41,70.0]
[1729600745532,6.0078,166.45,166.41,6.3279]
[1729600746529,6.0075,166.46,166.41,6.3279]
[1729600748427,6.0075,166.46,166.4,15.3405]
[1729600748804,6.0081,166.45,166.4,15.3405]
[1729600749022,6.0081,166.45,166.37,76.0266]
[1729600749318,15.0154,166.5,166.37,76.0266]
[1729600749319,43.776884,166.49,166.37,76.0266]
[1729600749526,6.0075,166.46,166.37,76.0266]
[1729600750026,15.8565,166.51,166.39,70.0]
[1729600750201,6.006,166.5,166.4,20.0]
[1729600750399,0.19993659,166.59,166.4,20.0]
[1729600750400,12.26617483,166.55,166.45,70.0]
[1729600750618,6.0052,166.53,166.45,15.3232]
[1729600751419,6.0052,166.53,166.43,70.0]
[1729600751600,6.0052,166.53,166.39,27.8282535]
[1729600751601,6.0056,166.51,166.42,20.0]
[1729600751813,30.1156,166.58,166.39,70.0]
[1729600752000,23.776884,166.55,166.38,16.2143]
[1729600752205,6.0071,166.47,166.38,16.2143]
[1729600752618,15.0123,166.53,166.38,16.2143]
[1729600752619,6.006,166.5,166.39,70.0]
[1729600753031,23.776884,166.52,166.39,70.0]
[1729600753330,6.0057,166.51,166.41,70.0]
[1729600754018,6.0053,166.52,166.41,70.0]
[1729600754528,15.0095,166.57,166.43,70.0]
[1729600754713,20.0,166.55,166.43,70.0]
[1729600754906,6.005,166.53,166.43,70.0]
[1729600755321,6.0046,166.54,166.43,70.0]
[1729600755823,23.776884,166.55,166.43,70.0]
[1729600756026,6.005,166.53,166.43,70.0]
[1729600756322,6.0053,166.52,166.41,70.0]
[1729600756529,6.0053,166.52,166.42,20.0]
[1729600756715,6.0053,166.52,166.43,70.0]
[1729600757222,6.0053,166.52,166.42,20.0]
[1729600757428,6.0053,166.52,166.43,70.0]
[1729600759308,6.0045,166.54,166.43,70.0]
[1729600759509,20.0,166.54,166.43,70.0]
[1729600759704,6.0063,166.5,166.41,20.0]
[1729600760318,20.0,166.54,166.4,70.0]
[1729600760319,6.0067,166.49,166.4,70.0]
[1729600760511,6.0067,166.49,166.38,86.2143]
[1729600760829,6.0061,166.5,166.4,70.0]
[1729600762519,6.0066,166.49,166.39,20.0]
[1729600762732,6.0066,166.49,166.4,70.0]
[1729600763113,23.776884,166.53,166.42,70.0]
[1729600763329,6.0054,166.52,166.42,70.0]
[1729600769831,15.01,166.56,166.42,70.0]
[1729600770015,23.776884,166.55,166.4,87.33213926]
[1729600770215,20.0,166.54,166.4,87.33213926]
[1729600770415,6.006,166.5,166.4,87.33213926]
[1729600772439,6.0052,166.53,166.42,70.0]
[1729600772645,6.0053,166.52,166.43,6.5914]
[1729600772845,6.005,166.53,166.43,6.5914]
[1729600773554,6.0046,166.54,166.45,16.5627]
[1729600774044,21.2652583,166.59,166.46,70.0]
[1729600774236,6.2578583,166.59,166.48,70.0]
[1729600774446,6.0031,166.58,166.48,70.0]
[1729600776346,23.776884,166.6,166.46,70.0]
[1729600776530,6.0041,166.56,166.46,70.0]
[1729600777050,6.0038,166.57,166.46,70.0]
[1729600777348,6.0039,166.56,166.46,70.0]
[1729600778646,15.0069,166.59,166.46,70.0]
[1729600778858,6.0039,166.56,166.46,70.0]
[1729600779427,6.0042,166.55,166.46,70.0]
[1729600780622,23.776884,166.6,166.46,70.0]
[1729600781140,6.0035,166.57,166.46,70.0]
[1729600781957,6.0039,166.56,166.46,70.0]
[1729600789543,23.776884,166.6,166.49,70.0]
[1729600789946,6.0031,166.58,166.5,6.0697]
[1729600790260,6.0023,166.64,166.51,70.0]
[1729600790562,6.002,166.61,166.51,70.0]
[1729600791247,6.002,166.61,166.52,15.2374]
[1729600792742,23.776884,166.63,166.52,15.2374]
[1729600793067,6.002,166.61,166.52,15.2374]
[1729600794443,23.776884,166.63,166.52,15.2374]
[1729600794639,6.0023,166.61,166.52,15.2374]
[1729600795462,6.0023,166.61,166.53,70.0]
[1729600796048,6.0017,166.62,166.53,70.0]
[1729600796670,6.0009,166.64,166.54,11.07970471]
[1729600796964,23.95730175,166.66,166.56,11.07970471]
[1729600797170,6.0006,166.65,166.56,11.07970471]
[1729600797340,23.776884,166.65,166.54,11.07970471]
[1729600797541,6.0029,166.59,166.52,15.2374]
[1729600797938,0.1,166.88,166.71,6.2048]
[1729600798142,18.03,166.93,166.74,31.07970471]
[1729600798143,0.1,166.91,166.74,31.07970471]
[1729600798370,0.1,166.91,166.75,59.262465]
[1729600798541,1.79095808,166.91,166.76,11.07970471]
[1729600798963,5.9923,166.89,166.76,11.07970471]
[1729600799260,30.6815,166.94,166.66,70.0]
[1729600799261,5.9957,166.79,166.66,70.0]
[1729600799464,16.3286,166.82,166.65,6.6654]
[1729600799465,5.9971,166.75,166.65,6.6654]
[1729600799654,5.9971,166.75,166.66,30.0]
[1729600800367,23.776884,166.74,166.66,30.0]
[1729600800550,5.9964,166.77,166.66,30.0]
[1729600800746,23.776884,166.76,166.66,30.0]
[1729600801044,29.773284,166.77,166.66,30.0]
[1729600801258,23.776884,166.75,166.66,30.0]
[1729600801567,23.776884,166.75,166.65,6.6654]
[1729600802774,15.18703659,166.81,166.65,6.6654]
[1729600802775,29.772184,166.8,166.65,6.6654]
[1729600802980,20.0,166.79,166.65,6.6654]
[1729600803187,23.776884,166.78,166.65,6.6654]
[1729600803348,23.776884,166.78,166.67,20.0]
[1729600803865,23.776884,166.76,166.65,6.6654]
[1729600804653,20.0,166.75,166.65,6.6654]
[1729600804851,23.776884,166.74,166.65,6.6654]
[1729600805476,5.9959,166.78,166.66,20.0]
[1729600805658,20.0,166.77,166.66,20.0]
[1729600806854,20.0,166.77,166.66,90.0]
[1729600807077,20.0,166.79,166.66,90.0]
[1729600807383,5.9961,166.78,166.66,90.0]
[1729600808580,23.776884,166.75,166.65,6.6654]
[1729600808786,23.776884,166.72,166.65,6.6654]
[1729600809380,23.776884,166.73,166.65,6.6654]
[1729600809583,23.776884,166.71,166.6,6.5604]
[1729600809951,20.0,166.77,166.63,70.0]
[1729600810257,20.0,166.75,166.63,70.0]
[1729600810953,20.0,166.75,166.64,20.0]
[1729600811379,23.776884,166.74,166.64,20.0]
[1729600812079,23.776884,166.74,166.6,6.5604]
[1729600812080,23.776884,166.69,166.6,6.5604]
[1729600813262,23.776884,166.69,166.61,20.0]
[1729600813880,23.776884,166.7,166.61,20.0]
[1729600814861,5.9992,166.69,166.6,6.5604]
[1729600815055,23.776884,166.68,166.6,6.5604]
[1729600815278,23.776884,166.68,166.59,20.0]
[1729600815479,20.0,166.65,166.56,6.393]
[1729600815780,23.776884,166.64,166.56,6.393]
[1729600816363,43.776884,166.7,166.57,70.0]
[1729600816571,43.776884,166.68,166.56,6.393]
[1729600816777,43.776884,166.68,166.57,20.0]
[1729600817490,49.776684,166.68,166.57,20.0]
[1729600817985,43.776884,166.68,166.57,20.0]
[1729600821069,49.776484,166.68,166.57,20.0]
[1729600821860,49.776484,166.68,166.59,20.0]
[1729600821861,23.776884,166.68,166.59,20.0]
[1729600822067,23.0944768,166.83,166.66,20.0]
[1729600822267,0.1,166.8,166.64,37.28279751]
[1729600822482,23.0944768,166.83,166.62,70.0]
[1729600822483,0.1,166.78,166.62,20.0]
[1729600822669,5.9972,166.75,166.62,20.0]
[1729600823079,6.4268,166.74,166.6,22.5781]
[1729600823279,6.4268,166.74,166.56,79.14903851]
[1729600823280,6.0003,166.66,166.56,20.0]
[1729600823590,23.776884,166.65,166.55,22.4837]
[1729600824279,23.776884,166.64,166.55,22.4837]
[1729600824887,43.776884,166.65,166.55,22.4837]
[1729600825275,43.776884,166.65,166.55,6.4918]
[1729600825477,23.776884,166.63,166.55,6.4918]
[1729600825875,23.776884,166.63,166.52,20.0]
[1729600826884,29.778884,166.61,166.51,6.6583]
[1729600828000,23.776884,166.61,166.51,6.6583]
[1729600828288,23.776884,166.61,166.48,6.0807]
[1729600828712,23.776884,166.61,166.5,87.28279751]
[1729600829194,23.776884,166.66,166.53,87.28279751]
[1729600829493,6.0015,166.63,166.51,70.0]
[1729600829697,23.776884,166.62,166.52,20.0]
[1729600830083,23.776884,166.63,166.52,20.0]
[1729600830394,29.778184,166.63,166.52,20.0]
[1729600830903,23.776884,166.59,166.51,20.0]
[1729600831596,23.776884,166.6,166.51,20.0]
[1729600832300,23.776884,166.6,166.51,90.0]
[1729600832492,14.9987,166.69,166.53,87.28279751]
[1729600832668,20.0,166.64,166.53,87.28279751]
[1729600832873,15.0042,166.62,166.48,6.0807]
[1729600833173,15.0069,166.59,166.47,15.1501]
[1729600833385,20.0,166.56,166.47,15.1501]
[1729600833592,20.0,166.57,166.47,15.1501]
[1729600833774,0.1,166.63,166.47,15.1501]
[1729600833775,22.1163,166.66,166.5,70.0]
[1729600833975,0.1,166.65,166.49,17.28279751]
[1729600834196,6.0022,166.61,166.49,17.28279751]
[1729600834583,6.0022,166.61,166.5,20.0]
[1729600835294,23.776884,166.59,166.5,20.0]
[1729600835606,23.776884,166.59,166.47,15.1501]
[1729600835607,23.776884,166.57,166.47,15.1501]
[1729600836897,23.776884,166.57,166.48,20.0]
[1729600837196,29.780484,166.57,166.48,20.0]
[1729600837403,23.776884,166.57,166.48,20.0]
[1729600838376,15.4113,166.71,166.53,90.0]
[1729600838697,6.0009,166.64,166.55,20.0]
[1729600838886,0.1,166.69,166.54,32.72279751]
[1729600839393,6.0016,166.63,166.54,15.44]
[1729600839579,6.0017,166.62,166.52,6.2346]
[1729600839778,6.0017,166.62,166.53,20.0]
[1729600840286,23.776884,166.61,166.53,20.0]
[1729600841013,23.776884,166.62,166.53,90.0]
[1729600841394,23.776884,166.62,166.52,6.2346]
[1729600841702,20.0,166.68,166.53,107.28279751]
[1729600841889,6.0009,166.65,166.53,37.28279751]
[1729600842086,6.0013,166.63,166.53,37.28279751]
[1729600843203,23.776884,166.62,166.53,37.28279751]
[1729600844984,29.778684,166.62,166.53,37.28279751]
[1729600845791,29.778684,166.62,166.53,20.0]
[1729600846110,23.776884,166.63,166.53,37.28279751]
[1729600846312,29.778384,166.63,166.53,37.28279751]
[1729600847196,23.776884,166.61,166.53,37.28279751]
[1729600848511,23.776884,166.62,166.53,37.28279751]
[1729600849802,23.776884,166.63,166.53,37.28279751]
[1729600850006,23.776884,166.61,166.53,20.0]
[1729600850902,23.776884,166.61,166.5,15.3433]
[1729600851104,23.776884,166.61,166.49,17.28279751]
[1729600851105,6.0031,166.58,166.49,17.28279751]
[1729600851293,23.776884,166.57,166.48,6.508]
[1729600852215,23.776884,166.57,166.49,20.0]
[1729600854004,20.1,166.56,166.41,9.07429207]
[1729600854200,6.0071,166.47,166.38,22.0]
[1729600854420,43.876884,166.5,166.35,70.0]
[1729600854722,6.0089,166.42,166.34,6.2484]
[1729600854921,6.0089,166.42,166.33,15.7516]
[1729600855104,23.776884,166.39,166.3,6.2484]
[1729600855417,6.0099,166.39,166.3,6.2484]
[1729600856125,6.0108,166.37,166.3,6.2484]
[1729600856424,6.0108,166.37,166.28,15.7516]
[1729600856597,23.776884,166.36,166.24,0.6163768]
[1729600856803,6.0117,166.34,166.24,0.6163768]
[1729600857001,20.0,166.31,166.24,0.6163768]
[1729600857197,6.0135,166.29,166.24,0.6163768]
[1729600857402,29.790284,166.3,166.24,0.6163768]
[1729600857596,23.776884,166.3,166.24,0.6163768]
[1729600857904,6.018,166.17,166.08,0.6163768]
[1729600858098,43.776884,166.16,166.08,0.6163768]
[1729600858302,43.776884,166.16,166.09,6.26172144]
[1729600858821,43.776884,166.16,166.08,0.6163768]
[1729600859033,6.0177,166.18,166.08,0.6163768]
[1729600859202,0.09993659,166.24,166.08,0.6163768]
[1729600859203,23.776884,166.17,166.08,0.6163768]
[1729600859524,0.1,166.34,166.32,2.83441001]
[1729600859707,0.1,166.34,166.14,70.0]
[1729600859708,0.1,166.32,166.14,70.0]
[1729600859904,0.19993659,166.3,166.12,70.0]
[1729600860114,6.6487,166.34,166.1,70.0]
[1729600860115,0.19993659,166.28,166.1,70.0]
[1729600860322,6.0143,166.27,166.12,70.0]
[1729600860620,0.1,166.29,166.12,70.0]
[1729600860827,20.0,166.25,166.12,70.0]
[1729600861318,43.776884,166.21,166.09,22.3047]
[1729600861509,6.0173,166.19,166.08,0.6163768]
[1729600861709,43.776884,166.21,166.08,0.6163768]
[1729600862307,49.793484,166.21,166.08,0.6163768]
[1729600862507,20.0,166.21,166.1,70.0]
[1729600862714,20.0,166.21,166.08,70.6163768]
[1729600863137,20.0,166.26,166.11,20.0]
[1729600863628,0.1,166.29,166.11,20.0]
[1729600863827,6.0145,166.27,166.13,20.0]
[1729600864003,6.0147,166.26,166.13,20.0]
[1729600864405,6.0127,166.32,166.17,20.0]
[1729600864626,6.6487,166.34,166.18,70.0]
[1729600864817,6.6487,166.34,166.17,20.0]
[1729600864818,6.6487,166.34,166.2,70.0]
[1729600865026,12.6606,166.34,166.17,20.0]
[1729600865235,6.0122,166.33,166.19,70.0]
[1729600865516,16.1018,166.37,166.2,20.0]
[1729600865718,6.0115,166.35,166.2,20.0]
[1729600866033,6.0111,166.36,166.22,20.0]
[1729600866222,16.1018,166.37,166.22,20.0]
[1729600866223,6.0114,166.35,166.22,20.0]
[1729600866734,10.51466417,166.39,166.22,20.0]
[1729600866735,6.0103,166.38,166.22,20.0]
[1729600866936,10.41466417,166.39,166.22,20.0]
[1729600866937,6.0108,166.37,166.22,20.0]
[1729600867107,10.41466417,166.39,166.22,20.0]
[1729600867308,6.0111,166.36,166.23,70.0]
[1729600867914,20.0,166.35,166.23,70.0]
[1729600868117,20.0,166.36,166.23,70.0]
[1729600868519,20.0,166.36,166.19,70.0]
[1729600868713,20.0,166.34,166.19,70.0]
[1729600869031,20.0,166.34,166.2,20.0]
[1729600869337,6.0125,166.32,166.2,20.0]
[1729600869722,23.776884,166.31,166.2,20.0]
[1729600870412,23.776884,166.31,166.18,20.0]
[1729600870613,29.789884,166.31,166.18,20.0]
[1729600873428,29.789984,166.31,166.18,20.0]
[1729600873628,23.776884,166.31,166.18,20.0]
[1729600873831,29.789984,166.31,166.18,20.0]
[1729600874010,23.776884,166.31,166.18,20.0]
[1729600874214,23.776884,166.35,166.2,20.0]
[1729600874414,43.776884,166.33,166.2,20.0]
[1729600875437,43.776884,166.33,166.21,70.0]
[1729600877026,20.0,166.36,166.22,20.0]
[1729600877418,20.0,166.34,166.22,20.0]
[1729600878134,20.0,166.35,166.22,20.0]
[1729600878321,23.776884,166.34,166.22,20.0]
[1729600879832,6.0102,166.39,166.24,20.0]
[1729600880014,6.1233,166.4,166.25,70.0]
[1729600880219,6.588,166.46,166.3,70.0]
[1729600880417,6.0078,166.45,166.31,20.0]
[1729600880635,6.588,166.46,166.32,70.0]
[1729600880840,6.588,166.46,166.33,20.0]
[1729600881040,6.0066,166.49,166.34,70.0]
[1729600881226,6.0067,166.48,166.34,70.0]
[1729600881427,6.0064,166.49,166.33,20.0]
[1729600881724,6.0067,166.48,166.33,20.0]
[1729600882124,6.0067,166.48,166.35,70.0]
[1729600882425,15.0959,166.51,166.36,20.0]
[1729600882638,15.0959,166.51,166.37,70.0]
[1729600882827,21.1016,166.51,166.38,20.0]
[1729600883143,6.0048,166.52,166.38,90.0]
[1729600883345,6.0048,166.52,166.41,20.0]
[1729600883640,6.0049,166.53,166.41,20.0]
[1729600884422,6.0047,166.54,166.41,20.0]
[1729600884632,6.0057,166.51,166.4,20.0]
[1729600885529,23.876884,166.55,166.4,20.0]
[1729600885838,6.0059,166.51,166.4,20.0]
[1729600886227,23.776884,166.5,166.4,20.0]
[1729600889125,29.782084,166.53,166.4,90.0]
[1729600889446,29.782084,166.53,166.34,0.1]
[1729600889447,6.0084,166.44,166.31,70.0]
[1729600889647,6.0085,166.44,166.31,70.0]
[1729600889941,23.776884,166.47,166.33,70.0]
[1729600889942,43.776884,166.46,166.33,70.0]
[1729600890134,23.776884,166.46,166.33,70.0]
[1729600890540,9.3724975,166.52,166.35,97.73740297]
[1729600890728,20.0,166.55,166.39,70.0]
[1729600890933,6.0053,166.52,166.39,70.0]
[1729600891550,20.1,166.55,166.38,20.0]
[1729600891748,15.072,166.57,166.38,20.0]
[1729600891749,0.1,166.54,166.38,20.0]
[1729600891932,23.776884,166.48,166.38,20.0]
[1729600892130,6.0064,166.49,166.38,20.0]
[1729600892539,6.0059,166.51,166.38,20.0]
[1729600892850,6.0061,166.5,166.38,20.0]
[1729600894236,6.0071,166.47,166.38,20.0]
[1729600894637,6.0065,166.49,166.38,20.0]
[1729600895462,35.015,166.5,166.37,20.0]
[1729600895646,6.0075,166.46,166.36,6.0512]
[1729600897652,23.776884,166.49,166.36,6.0512]
[1729600897653,6.0091,166.42,166.36,6.0512]
[1729600897842,6.0085,166.44,166.36,6.0512]
[1729600898042,23.776884,166.46,166.36,6.0512]
[1729600898356,26.0067,166.48,166.36,6.0512]
[1729600898731,29.783884,166.47,166.36,6.0512]
[1729600899457,6.0074,166.46,166.36,6.0512]
[1729600899934,6.0066,166.49,166.37,90.0]
[1729600900836,6.006,166.5,166.37,90.0]
[1729600901236,6.0056,166.51,166.4,20.0]
[1729600901752,6.007,166.48,166.36,6.0512]
[1729600901956,6.0049,166.53,166.37,20.0]
[1729600902146,0.1,166.54,166.37,20.0]
[1729600902147,6.007,166.47,166.37,20.0]
[1729600904337,6.007,166.47,166.36,20.0]
[1729600905361,6.0075,166.46,166.36,20.0]
[1729600905656,6.0075,166.46,166.34,20.0]
[1729600907161,6.008,166.45,166.34,20.0]
[1729600907746,43.776884,166.48,166.35,70.0]
[1729600908161,15.0115,166.54,166.38,20.0]
[1729600908358,6.0063,166.49,166.38,20.0]
[1729600908862,23.776884,166.53,166.38,20.0]
[1729600909040,6.0064,166.49,166.38,20.0]
[1729600910160,6.0068,166.48,166.36,20.0]
[1729600911654,20.0,166.52,166.36,20.0]
[1729600911847,6.0071,166.47,166.36,20.0]
[1729600913039,1.89618754,166.55,166.42,70.0]
[1729600913040,1.79625095,166.55,166.42,70.0]
[1729600913241,6.26049573,166.57,166.43,20.0]
[1729600913242,6.0049,166.53,166.43,20.0]
[1729600913448,0.1,166.56,166.39,20.0]
[1729600913768,6.0062,166.5,166.39,20.0]
[1729600915942,20.0,166.53,166.39,20.0]
[1729600916164,6.0057,166.51,166.39,20.0]
[1729600920763,6.006,166.5,166.39,20.0]
[1729600922247,23.776884,166.52,166.39,20.0]
[1729600922465,23.776884,166.5,166.37,20.0]
[1729600922859,6.0074,166.47,166.37,20.0]
[1729600930852,20.0,166.51,166.38,70.0]
[1729600931059,6.006,166.5,166.39,20.0]
[1729600931262,6.0056,166.51,166.39,20.0]
[1729600931454,6.006,166.5,166.39,20.0]
[1729600932679,6.007,166.48,166.37,20.0]
[1729600933458,6.007,166.48,166.3,15.01336581]
[1729600933459,73.903284,166.52,166.33,70.0]
[1729600933662,0.09993659,166.53,166.28,1.13736571]
[1729600933663,0.09993659,166.48,166.28,1.03736571]
[1729600933874,23.97682059,166.46,166.28,70.0]
[1729600934077,23.97682059,166.46,166.27,6.26509348]
[1729600934078,23.876884,166.44,166.27,6.26509348]
[1729600934260,6.0114,166.36,166.27,6.26509348]
[1729600934461,23.776884,166.4,166.23,70.0]
[1729600934685,6.0117,166.35,166.23,70.0]
[1729600934985,6.0121,166.33,166.21,70.0]
[1729600935763,6.0092,166.41,166.23,70.0]
[1729600936082,6.0107,166.37,166.26,20.0]
[1729600937683,20.0,166.38,166.23,70.0]
[1729600937886,20.0,166.38,166.22,27.78536918]
[1729600937887,6.0118,166.34,166.22,20.0]
[1729600938086,23.776884,166.35,166.22,20.0]
[1729600938288,6.012,166.34,166.22,20.0]
[1729600939171,23.776884,166.34,166.21,70.0]
[1729600939379,29.788784,166.34,166.21,70.0]
[1729600939593,6.0121,166.33,166.21,70.0]
[1729600939773,6.0114,166.35,166.23,70.0]
[1729600940080,20.0,166.36,166.23,70.0]
[1729600940081,26.011,166.36,166.23,70.0]
[1729600940284,29.787584,166.37,166.23,70.0]
[1729600940472,6.0113,166.36,166.24,20.0]
[1729600941284,38.799084,166.42,166.26,20.0]
[1729600941480,6.0103,166.38,166.26,20.0]
[1729600942467,6.2675478,166.43,166.3,20.0]
[1729600942677,6.0092,166.42,166.3,20.0]
[1729600943377,6.0094,166.41,166.3,20.0]
[1729600943892,6.0088,166.43,166.3,20.0]
[1729600944077,15.0196,166.45,166.29,70.0]
[1729600944289,6.0091,166.42,166.3,20.0]
[1729600948086,20.0,166.42,166.28,20.0]
[1729600948296,6.0102,166.39,166.28,20.0]
[1729600949269,6.0102,166.39,166.29,6.0281]
[1729600949469,6.0102,166.39,166.3,20.0]
[1729600950592,6.0103,166.38,166.28,20.0]
[1729600950975,43.776884,166.39,166.27,16.3004]
[1729600951320,6.0111,166.36,166.27,16.3004]
[1729600952124,15.5284,166.35,166.25,76.078]
[1729600952412,15.5284,166.35,166.26,20.0]
[1729600952616,21.5382,166.4,166.28,36.5239]
[1729600958095,6.01,166.39,166.28,36.5239]
[1729600958801,6.0104,166.38,166.26,70.0]
[1729600959005,15.5284,166.4,166.28,70.0]
[1729600959417,6.0099,166.39,166.28,70.0]
[1729600960221,6.0099,166.39,166.29,20.0]
[1729600963922,15.5284,166.4,166.29,20.0]
[1729600964129,15.5284,166.4,166.3,70.0]
[1729600964306,15.5284,166.4,166.29,20.0]
[1729600964307,15.5284,166.4,166.29,26.3529]
[1729600964510,6.0103,166.38,166.29,26.3529]
[1729600965812,6.0103,166.38,166.29,6.3529]
[1729600966016,43.776884,166.39,166.26,70.0]
[1729600966407,6.0119,166.34,166.26,70.0]
[1729600966609,21.0361,166.38,166.26,70.0]
[1729600966806,6.011,166.36,166.26,70.0]
[1729600967428,6.011,166.36,166.27,20.0]
[1729600968127,21.5381,166.4,166.29,70.0]
[1729600968907,6.0101,166.39,166.29,70.0]
[1729600971912,21.538,166.4,166.29,70.0]
[1729600972506,6.0101,166.39,166.29,70.0]
[1729600972707,6.0102,166.39,166.29,70.0]
[1729600977516,43.776884,166.43,166.31,70.0]
[1729600977723,6.0091,166.42,166.32,20.0]
[1729600978032,6.0088,166.42,166.32,20.0]
[1729600978218,31.0366,166.44,166.32,20.0]
[1729600978814,15.0213,166.43,166.3,21.9276]
[1729600979018,6.0103,166.38,166.31,20.0]
[1729600979226,6.0103,166.38,166.3,21.9276]
[1729600980618,6.011,166.37,166.3,21.9276]
[1729600980940,6.0116,166.35,166.26,21.9276]
[1729600982545,6.0116,166.35,166.27,20.0]
[1729600983228,6.0116,166.35,166.26,15.4357]
[1729600983829,37.2991,166.39,166.26,15.4357]
[1729600984054,6.0111,166.36,166.26,15.4357]
[1729600984727,43.776884,166.38,166.26,15.4357]
[1729600985031,6.0126,166.32,166.22,92.8476]
[1729600986450,6.0129,166.31,166.22,22.8476]
[1729600986631,6.0129,166.31,166.22,92.8476]
[1729600987337,6.0129,166.31,166.23,20.0]
[1729600987529,6.0138,166.29,166.22,16.3557]
[1729600991949,6.6482,166.32,166.22,16.3557]
[1729600992157,6.0126,166.32,166.23,20.0]
[1729600992732,6.0126,166.32,166.22,86.3557]
[1729600992928,6.0129,166.31,166.22,86.3557]
[1729600993132,6.0134,166.3,166.22,16.3557]
[1729600993658,23.776884,166.32,166.22,16.3557]
[1729600993860,6.0137,166.29,166.22,16.3557]
[1729600994233,15.0924,166.33,166.22,86.3557]
[1729600994548,21.1046,166.33,166.22,86.3557]
[1729600994731,6.0126,166.32,166.22,86.3557]
[1729600995152,15.0924,166.33,166.22,16.3557]
[1729600995352,6.0128,166.31,166.22,16.3557]
[1729600996455,23.776884,166.32,166.22,16.3557]
[1729600996665,6.0135,166.3,166.22,16.3557]
[1729600997661,6.0129,166.31,166.22,16.3557]
[1729600997841,6.0134,166.3,166.22,16.3557]
[1729601001353,6.0144,166.27,166.18,92.577]
[1729601001662,6.015,166.26,166.19,20.0]
[1729601001833,43.776884,166.32,166.18,92.577]
[1729601002039,6.0145,166.27,166.18,92.577]
[1729601002636,15.0335,166.3,166.18,92.577]
[1729601002860,6.014,166.28,166.19,11.12542294]
[1729601005563,6.014,166.28,166.14,9.49642156]
[1729601005564,30.0697,166.28,166.14,22.3769]
[1729601005742,43.776884,166.27,166.14,22.3769]
[1729601006051,43.776884,166.27,166.11,70.0]
[1729601006052,6.0172,166.19,166.1,33.50232294]
[1729601006249,6.0172,166.19,166.1,22.3769]
[1729601006453,6.0169,166.2,166.11,70.0]
[1729601006957,20.0,166.22,166.1,22.3769]
[1729601007160,16.0209,166.23,166.1,22.3769]
[1729601007356,6.0171,166.2,166.1,33.50232294]
[1729601008472,6.0171,166.2,166.1,22.3769]
[1729601009546,6.0172,166.19,166.1,22.3769]
[1729601010446,6.0169,166.2,166.1,22.3769]
[1729601011052,20.0,166.22,166.1,22.3769]
[1729601011261,6.0172,166.19,166.1,22.3769]
[1729601012144,6.0168,166.21,166.11,70.0]